fUST/lending_fUST_20240912
["ID","MTS","AMOUNT","RATE_DAILY","PERIOD"]
[337814464,1726129853787,-500.0,0.00016986,2]
[337814465,1726129853797,-500.0,0.00016986,2]
[337814466,1726129853807,-500.0,0.00016986,2]
[337814467,1726129853816,-500.0,0.00016986,2]
[337814468,1726129853826,-620.31,0.00016986,2]
[337814469,1726129853835,-500.0,0.00016986,2]
[337814470,1726129853844,-500.0,0.00016986,2]
[337814471,1726129853854,-500.0,0.00016986,2]
[337814472,1726129853863,-500.0,0.00016986,2]
[337814473,1726129853872,-1259.4,0.00016986,2]
[337814474,1726129853882,-822.05,0.00016986,2]
[337814475,1726129853891,-500.0,0.00016986,2]
[337814476,1726129853903,-696.65,0.00016986,2]
[337814477,1726129853913,-500.0,0.00016986,2]
[337814478,1726129853923,-533.89,0.00016986,2]
[337814479,1726129853932,-8326.4,0.00016986,2]
[337814480,1726129853941,-500.0,0.00016986,2]
[337814481,1726129853950,-500.0,0.00016986,2]
[337814482,1726129853960,-500.0,0.00016986,2]
[337814483,1726129853970,-500.0,0.00016986,2]
[337814484,1726129853979,-500.0,0.00016986,2]
[337814485,1726129853988,-500.0,0.00016986,2]
[337814486,1726129853997,-638.26,0.00016986,2]
[337814487,1726129854007,-500.0,0.00016986,2]
[337814488,1726129854016,-1592.26,0.00016986,2]
[337814489,1726129854026,-500.0,0.00016986,2]
[337814490,1726129854038,-513.23021143,0.00016986,2]
[337814491,1726129854047,-500.0,0.00016986,2]
[337814492,1726129854057,-505.93039818,0.00016986,2]
[337814493,1726129854066,-771.86,0.00016986,2]
[337814494,1726129854076,-500.0,0.00016986,2]
[337814495,1726129854085,-500.0,0.00016986,2]
[337814496,1726129854095,-500.0,0.00016986,2]
[337814497,1726129854105,-495.25015743,0.00016986,2]
[337814498,1726129854116,-765.94,0.00016986,2]
[337814499,1726129854126,-789.07,0.00016986,2]
[337814500,1726129854136,-500.0,0.00016986,2]
[337814501,1726129854146,-500.0,0.00016986,2]
[337814502,1726129854156,-500.0,0.00016986,2]
[337814503,1726129854165,-500.0,0.00016986,2]
[337814504,1726129854174,-819.89,0.00016986,2]
[337814505,1726129854184,-500.0,0.00016986,2]
[337814506,1726129854193,-749.38,0.00016986,2]
[337814507,1726129854203,-500.0,0.00016986,2]
[337814508,1726129854213,-500.0,0.00016986,2]
[337814509,1726129854222,-500.0,0.00016986,2]
[337814510,1726129854231,-500.0,0.00016986,2]
[337814511,1726129854242,-602.53431409,0.00016986,2]
[337814512,1726129854251,-801.27,0.00016986,2]
[337814513,1726129854261,-500.0,0.00016986,2]
[337814514,1726129854271,-785.06,0.00016986,2]
[337814515,1726129854281,-500.0,0.00016986,2]
[337814516,1726129854293,-1535.88,0.00016986,2]
[337814517,1726129854303,-645.24,0.00016986,2]
[337814518,1726129854314,-500.0,0.00016986,2]
[337814519,1726129854325,-553.59,0.00016986,2]
[337814520,1726129854337,-1020.67,0.00016986,2]
[337814521,1726129854347,-785.57,0.00016986,2]
[337814522,1726129854358,-5335.8,0.00016986,2]
[337814523,1726129854368,-9814.29,0.00016986,2]
[337814524,1726129854378,-643.99,0.00016986,2]
[337814525,1726129854390,-601.27,0.00016986,2]
[337814526,1726129854401,-728.16,0.00016986,2]
[337814527,1726129854411,-225.07372055,0.00016986,2]
[337814528,1726129854420,-1101.59,0.00016986,2]
[337814529,1726129854430,-500.0,0.00016986,2]
[337814530,1726129854440,-849.41,0.00016986,2]
[337814531,1726129854451,-4352.8,0.00016986,2]
[337814532,1726129854462,-1672.11,0.00016986,2]
[337814533,1726129854473,-500.0,0.00016986,2]
[337814534,1726129854483,-873.42,0.00016986,2]
[337814535,1726129854494,-498.14246116,0.00016986,2]
[337814536,1726129854504,-500.0,0.00016986,2]
[337814537,1726129854514,-665.65,0.00016986,2]
[337814538,1726129854524,-500.0,0.00016986,2]
[337814539,1726129854534,-500.40507088,0.00016986,2]
[337814540,1726129854543,-500.0,0.00016986,2]
[337814541,1726129854552,-500.0,0.00016986,2]
[337814542,1726129854562,-500.0,0.00016986,2]
[337814543,1726129854572,-500.0,0.00016986,2]
[337814544,1726129854582,-496.81245248,0.00016986,2]
[337814545,1726129854592,-500.0,0.00016986,2]
[337814546,1726129854601,-391.47,0.00016986,2]
[337814547,1726129854613,-500.0,0.00016986,2]
[337814548,1726129854623,-500.0,0.00016986,2]
[337814549,1726129854635,-500.0,0.00016986,2]
[337814550,1726129854645,-521.91693118,0.00016986,2]
[337814551,1726129854656,-150.112233,0.00017,2]
[337814552,1726129854672,-150.112233,0.00017,2]
[337814553,1726129854682,-150.112233,0.00017,2]
[337814554,1726129854691,-150.0,0.00017084,2]
[337814555,1726129854701,-150.112233,0.000171,2]
[337814556,1726129854714,-150.112233,0.000171,2]
[337814557,1726129854724,-5461.94764664,0.00017136,2]
[337814558,1726129854734,-150.112233,0.000172,2]
[337814559,1726129854745,-150.112233,0.000172,2]
[337814560,1726129854754,-500.0,0.0001726,2]
[337814561,1726129854765,-497.83270152,0.0001726,2]
[337814562,1726129854774,-500.0,0.0001726,2]
[337814563,1726129854785,-500.0,0.0001726,2]
[337814564,1726129854795,-500.0,0.0001726,2]
[337814565,1726129854805,-500.0,0.0001726,2]
[337814566,1726129854815,-500.0,0.0001726,2]
[337814567,1726129854825,-500.0,0.0001726,2]
[337814568,1726129854835,-500.0,0.0001726,2]
[337814569,1726129854846,-500.0,0.0001726,2]
[337814570,1726129854856,-500.0,0.0001726,2]
[337814571,1726129854868,-500.0,0.0001726,2]
[337814572,1726129854877,-500.0,0.0001726,2]
[337814573,1726129854887,-500.0,0.0001726,2]
[337814574,1726129854897,-292.80070719,0.0001726,2]
[337814575,1726129854906,-500.0,0.0001726,2]
[337814576,1726129854916,-500.0,0.0001726,2]
[337814577,1726129854926,-500.0,0.0001726,2]
[337814578,1726129854936,-500.0,0.0001726,2]
[337814579,1726129854945,-500.0,0.0001726,2]
[337814580,1726129854955,-604.9,0.0001726,2]
[337814581,1726129854965,-500.0,0.0001726,2]
[337814582,1726129854975,-545.89,0.0001726,2]
[337814583,1726129854984,-500.0,0.0001726,2]
[337814584,1726129854994,-500.0,0.0001726,2]
[337814585,1726129855004,-500.0,0.0001726,2]
[337814586,1726129855014,-500.0,0.0001726,2]
[337814587,1726129855023,-500.0,0.0001726,2]
[337814588,1726129855033,-500.0,0.0001726,2]
[337814589,1726129855043,-500.0,0.0001726,2]
[337814590,1726129855053,-500.0,0.0001726,2]
[337814591,1726129855063,-500.0,0.0001726,2]
[337814592,1726129855073,-500.0,0.0001726,2]
[337814593,1726129855082,-500.0,0.0001726,2]
[337814594,1726129855091,-500.0,0.0001726,2]
[337814595,1726129855102,-500.0,0.0001726,2]
[337814596,1726129855112,-500.0,0.0001726,2]
[337814597,1726129855122,-500.0,0.0001726,2]
[337814598,1726129855132,-516.13,0.0001726,2]
[337814599,1726129855142,-500.0,0.0001726,2]
[337814600,1726129855152,-500.0,0.0001726,2]
[337814601,1726129855162,-500.0,0.0001726,2]
[337814602,1726129855172,-589.13754272,0.0001726,2]
[337814603,1726129855182,-211.31,0.0001726,2]
[337814604,1726129855192,-632.03,0.0001726,2]
[337814605,1726129855201,-500.0,0.0001726,2]
[337814606,1726129855212,-621.75,0.0001726,2]
[337814607,1726129855221,-500.0,0.0001726,2]
[337814608,1726129855231,-431.35775435,0.0001726,2]
[337814609,1726129855241,-500.0,0.0001726,2]
[337814610,1726129855251,-500.0,0.0001726,2]
[337814611,1726129855261,-500.0,0.0001726,2]
[337814612,1726129855270,-500.0,0.0001726,2]
[337814613,1726129855280,-526.44,0.0001726,2]
[337814614,1726129855289,-200.0,0.0001726,2]
[337814615,1726129855298,-500.0,0.0001726,2]
[337814616,1726129855308,-500.0,0.0001726,2]
[337814617,1726129855317,-510.94,0.0001726,2]
[337814618,1726129855326,-500.0,0.0001726,2]
[337814619,1726129855336,-500.0,0.0001726,2]
[337814620,1726129855346,-508.68391604,0.0001726,2]
[337814621,1726129855355,-496.88,0.0001726,2]
[337814622,1726129855365,-500.0,0.0001726,2]
[337814623,1726129855374,-500.0,0.0001726,2]
[337814624,1726129855384,-500.0,0.0001726,2]
[337814625,1726129855393,-500.0,0.0001726,2]
[337814626,1726129855403,-500.0,0.0001726,2]
[337814627,1726129855412,-500.0,0.0001726,2]
[337814628,1726129855422,-533.58,0.0001726,2]
[337814629,1726129855431,-500.0,0.0001726,2]
[337814630,1726129855440,-500.0,0.0001726,2]
[337814631,1726129855449,-500.0,0.0001726,2]
[337814632,1726129855458,-370.86,0.0001726,2]
[337814633,1726129855502,-500.0,0.0001726,2]
[337814634,1726129855513,-500.0,0.0001726,2]
[337814635,1726129855523,-500.0,0.0001726,2]
[337814636,1726129855532,-500.0,0.0001726,2]
[337814637,1726129855542,-500.0,0.0001726,2]
[337814638,1726129855552,-500.0,0.0001726,2]
[337814639,1726129855561,-500.0,0.0001726,2]
[337814640,1726129855570,-500.0,0.0001726,2]
[337814641,1726129855579,-500.0,0.0001726,2]
[337814642,1726129855588,-743.98,0.0001726,2]
[337814643,1726129855597,-500.0,0.0001726,2]
[337814644,1726129855607,-500.0,0.0001726,2]
[337814645,1726129855617,-500.0,0.0001726,2]
[337814646,1726129855626,-500.0,0.0001726,2]
[337814647,1726129855636,-500.0,0.0001726,2]
[337814648,1726129855645,-500.0,0.0001726,2]
[337814649,1726129855655,-500.0,0.0001726,2]
[337814650,1726129855667,-732.61,0.0001726,2]
[337814651,1726129855677,-500.0,0.0001726,2]
[337814652,1726129855686,-615.65,0.0001726,2]
[337814653,1726129855695,-500.0,0.0001726,2]
[337814654,1726129855704,-500.0,0.0001726,2]
[337814655,1726129855713,-500.0,0.0001726,2]
[337814656,1726129855722,-759.0,0.0001726,2]
[337814657,1726129855732,-661.83,0.0001726,2]
[337814658,1726129855744,-5197.27,0.0001726,2]
[337814659,1726129855754,-500.0,0.0001726,2]
[337814660,1726129855763,-808.7,0.0001726,2]
[337814661,1726129855773,-633.45,0.0001726,2]
[337814662,1726129855784,-500.0,0.0001726,2]
[337814663,1726129855794,-500.0,0.0001726,2]
[337814664,1726129855804,-500.0,0.0001726,2]
[337814665,1726129855814,-626.68,0.0001726,2]
[337814666,1726129855823,-501.14,0.0001726,2]
[337814667,1726129855833,-500.0,0.0001726,2]
[337814668,1726129855843,-705.3,0.0001726,2]
[337814669,1726129855852,-500.0,0.0001726,2]
[337814670,1726129855862,-500.0,0.0001726,2]
[337814671,1726129855871,-699.17,0.0001726,2]
[337814672,1726129855881,-968.51,0.0001726,2]
[337814673,1726129855892,-500.0,0.0001726,2]
[337814674,1726129855903,-624.32,0.0001726,2]
[337814675,1726129855914,-500.0,0.0001726,2]
[337814676,1726129855923,-500.0,0.0001726,2]
[337814677,1726129855933,-500.0,0.0001726,2]
[337814678,1726129855945,-500.0,0.0001726,2]
[337814679,1726129855954,-500.0,0.0001726,2]
[337814680,1726129855964,-500.0,0.0001726,2]
[337814681,1726129855974,-620.31,0.0001726,2]
[337814682,1726129855983,-500.0,0.0001726,2]
[337814683,1726129855994,-500.0,0.0001726,2]
[337814684,1726129856003,-500.0,0.0001726,2]
[337814685,1726129856012,-1259.4,0.0001726,2]
[337814686,1726129856022,-822.05,0.0001726,2]
[337814687,1726129856031,-500.0,0.0001726,2]
[337814688,1726129856041,-696.65,0.0001726,2]
[337814689,1726129856050,-500.0,0.0001726,2]
[337814690,1726129856059,-533.89,0.0001726,2]
[337814691,1726129856069,-8326.4,0.0001726,2]
[337814692,1726129856080,-500.0,0.0001726,2]
[337814693,1726129856090,-500.0,0.0001726,2]
[337814694,1726129856101,-169.55,0.0001726,2]
[337814695,1726129856111,-500.0,0.0001726,2]
[337814696,1726129856122,-500.0,0.0001726,2]
[337814697,1726129856131,-638.26,0.0001726,2]
[337814698,1726129856141,-493.75114129,0.0001726,2]
[337814699,1726129856151,-1592.26,0.0001726,2]
[337814700,1726129856160,-581.1,0.0001726,2]
[337814701,1726129856170,-771.86,0.0001726,2]
[337814702,1726129856179,-500.0,0.0001726,2]
[337814703,1726129856188,-500.0,0.0001726,2]
[337814704,1726129856197,-765.94,0.0001726,2]
[337814705,1726129856207,-789.07,0.0001726,2]
[337814706,1726129856217,-500.0,0.0001726,2]
[337814707,1726129856226,-819.89,0.0001726,2]
[337814708,1726129856235,-749.38,0.0001726,2]
[337814709,1726129856245,-500.0,0.0001726,2]
[337814710,1726129856255,-500.0,0.0001726,2]
[337814711,1726129856265,-561.35682585,0.0001726,2]
[337814712,1726129856274,-801.27,0.0001726,2]
[337814713,1726129856284,-500.0,0.0001726,2]
[337814714,1726129856294,-785.06,0.0001726,2]
[337814715,1726129856303,-500.0,0.0001726,2]
[337814716,1726129856312,-1535.88,0.0001726,2]
[337814717,1726129856321,-500.0,0.0001726,2]
[337814718,1726129856330,-645.24,0.0001726,2]
[337814719,1726129856339,-553.59,0.0001726,2]
[337814720,1726129856349,-1020.67,0.0001726,2]
[337814721,1726129856359,-785.57,0.0001726,2]
[337814722,1726129856369,-5335.8,0.0001726,2]
[337814723,1726129856380,-9814.29,0.0001726,2]
[337814724,1726129856389,-643.99,0.0001726,2]
[337814725,1726129856398,-601.27,0.0001726,2]
[337814726,1726129856407,-728.16,0.0001726,2]
[337814727,1726129856416,-1101.59,0.0001726,2]
[337814728,1726129856426,-500.0,0.0001726,2]
[337814729,1726129856435,-849.41,0.0001726,2]
[337814730,1726129856445,-4352.8,0.0001726,2]
[337814731,1726129856455,-1672.11,0.0001726,2]
[337814732,1726129856466,-500.0,0.0001726,2]
[337814733,1726129856476,-873.42,0.0001726,2]
[337814734,1726129856485,-665.65,0.0001726,2]
[337814735,1726129856495,-500.0,0.0001726,2]
[337814736,1726129856504,-500.0,0.0001726,2]
[337814737,1726129856515,-500.0,0.0001726,2]
[337814738,1726129856525,-501.75227839,0.0001726,2]
[337814739,1726129856534,-500.0,0.0001726,2]
[337814740,1726129856544,-500.0,0.0001726,2]
[337814741,1726129856553,-500.0,0.0001726,2]
[337814742,1726129856563,-500.0,0.0001726,2]
[337814743,1726129856573,-503.27155491,0.00017273,2]
[337814744,1726129856582,-500.0,0.00017273,2]
[337814745,1726129856592,-150.112233,0.000173,2]
[337814746,1726129856602,-150.112233,0.000173,2]
[337814747,1726129856611,-150.112233,0.000173,2]
[337814748,1726129856622,-150.112233,0.000174,2]
[337814749,1726129856632,-150.112233,0.000174,2]
[337814750,1726129856642,-150.112233,0.000174,2]
[337814751,1726129856651,-150.112233,0.000175,2]
[337814752,1726129856663,-150.112233,0.000175,2]
[337814753,1726129856673,-500.0,0.00017534,2]
[337814754,1726129856683,-500.0,0.00017534,2]
[337814755,1726129856693,-500.0,0.00017534,2]
[337814756,1726129856703,-500.0,0.00017534,2]
[337814757,1726129856712,-350.52,0.00017534,2]
[337814758,1726129856722,-500.0,0.00017534,2]
[337814759,1726129856732,-500.0,0.00017534,2]
[337814760,1726129856742,-500.0,0.00017534,2]
[337814761,1726129856752,-500.0,0.00017534,2]
[337814762,1726129856762,-536.01475524,0.00017534,2]
[337814763,1726129856772,-500.0,0.00017534,2]
[337814764,1726129856781,-500.0,0.00017534,2]
[337814765,1726129856791,-500.0,0.00017534,2]
[337814766,1726129856801,-500.0,0.00017534,2]
[337814767,1726129856810,-500.0,0.00017534,2]
[337814768,1726129856819,-500.0,0.00017534,2]
[337814769,1726129856829,-500.0,0.00017534,2]
[337814770,1726129856838,-604.9,0.00017534,2]
[337814771,1726129856847,-500.0,0.00017534,2]
[337814772,1726129856857,-500.0,0.00017534,2]
[337814773,1726129856868,-500.0,0.00017534,2]
[337814774,1726129856877,-500.0,0.00017534,2]
[337814775,1726129856887,-500.0,0.00017534,2]
[337814776,1726129856897,-500.0,0.00017534,2]
[337814777,1726129856906,-500.0,0.00017534,2]
[337814778,1726129856915,-500.0,0.00017534,2]
[337814779,1726129856924,-500.0,0.00017534,2]
[337814780,1726129856934,-500.0,0.00017534,2]
[337814781,1726129856943,-500.0,0.00017534,2]
[337814782,1726129856953,-500.0,0.00017534,2]
[337814783,1726129856962,-500.0,0.00017534,2]
[337814784,1726129856971,-500.0,0.00017534,2]
[337814785,1726129856980,-500.0,0.00017534,2]
[337814786,1726129856989,-516.13,0.00017534,2]
[337814787,1726129857000,-500.0,0.00017534,2]
[337814788,1726129857009,-500.0,0.00017534,2]
[337814789,1726129857018,-500.0,0.00017534,2]
[337814790,1726129857028,-632.03,0.00017534,2]
[337814791,1726129857037,-500.0,0.00017534,2]
[337814792,1726129857046,-621.75,0.00017534,2]
[337814793,1726129857055,-296.17323841,0.00017534,2]
[337814794,1726129857065,-500.0,0.00017534,2]
[337814795,1726129857074,-500.0,0.00017534,2]
[337814796,1726129857083,-500.0,0.00017534,2]
[337814797,1726129857092,-500.0,0.00017534,2]
[337814798,1726129857101,-526.44,0.00017534,2]
[337814799,1726129857110,-345.72,0.00017534,2]
[337814800,1726129857119,-378.63117305,0.00017534,2]
[337814801,1726129857128,-500.0,0.00017534,2]
[337814802,1726129857137,-500.0,0.00017534,2]
[337814803,1726129857146,-500.0,0.00017534,2]
[337814804,1726129857156,-500.0,0.00017534,2]
[337814805,1726129857165,-500.0,0.00017534,2]
[337814806,1726129857174,-500.0,0.00017534,2]
[337814807,1726129857183,-211.51900126,0.00017534,2]
[337814808,1726129857193,-533.58,0.00017534,2]
[337814809,1726129857202,-500.0,0.00017534,2]
[337814810,1726129857212,-500.0,0.00017534,2]
[337814811,1726129857222,-500.0,0.00017534,2]
[337814812,1726129857231,-500.0,0.00017534,2]
[337814813,1726129857240,-500.0,0.00017534,2]
[337814814,1726129857250,-500.0,0.00017534,2]
[337814815,1726129857259,-500.0,0.00017534,2]
[337814816,1726129857269,-500.0,0.00017534,2]
[337814817,1726129857279,-743.98,0.00017534,2]
[337814818,1726129857289,-500.0,0.00017534,2]
[337814819,1726129857298,-500.0,0.00017534,2]
[337814820,1726129857307,-500.0,0.00017534,2]
[337814821,1726129857316,-500.0,0.00017534,2]
[337814822,1726129857326,-500.0,0.00017534,2]
[337814823,1726129857335,-500.0,0.00017534,2]
[337814824,1726129857345,-500.0,0.00017534,2]
[337814825,1726129857355,-732.61,0.00017534,2]
[337814826,1726129857364,-500.0,0.00017534,2]
[337814827,1726129857374,-615.65,0.00017534,2]
[337814828,1726129857383,-500.0,0.00017534,2]
[337814829,1726129857392,-500.0,0.00017534,2]
[337814830,1726129857402,-500.0,0.00017534,2]
[337814831,1726129857411,-759.0,0.00017534,2]
[337814832,1726129857421,-661.83,0.00017534,2]
[337814833,1726129857431,-5197.27,0.00017534,2]
[337814834,1726129857441,-500.0,0.00017534,2]
[337814835,1726129857450,-808.7,0.00017534,2]
[337814836,1726129857460,-633.45,0.00017534,2]
[337814837,1726129857470,-500.0,0.00017534,2]
[337814838,1726129857479,-500.0,0.00017534,2]
[337814839,1726129857489,-626.68,0.00017534,2]
[337814840,1726129857498,-501.14,0.00017534,2]
[337814841,1726129857507,-500.0,0.00017534,2]
[337814842,1726129857517,-705.3,0.00017534,2]
[337814843,1726129857526,-699.17,0.00017534,2]
[337814844,1726129857536,-968.51,0.00017534,2]
[337814845,1726129857545,-546.60029333,0.00017534,2]
[337814846,1726129857553,-624.32,0.00017534,2]
[337814847,1726129857563,-500.0,0.00017534,2]
[337814848,1726129857573,-500.0,0.00017534,2]
[337814849,1726129857583,-500.0,0.00017534,2]
[337814850,1726129857592,-500.0,0.00017534,2]
[337814851,1726129857602,-500.0,0.00017534,2]
[337814852,1726129857612,-500.0,0.00017534,2]
[337814853,1726129857620,-620.31,0.00017534,2]
[337814854,1726129857630,-500.0,0.00017534,2]
[337814855,1726129857639,-500.0,0.00017534,2]
[337814856,1726129857649,-500.0,0.00017534,2]
[337814857,1726129857659,-1259.4,0.00017534,2]
[337814858,1726129857673,-822.05,0.00017534,2]
[337814859,1726129857682,-500.0,0.00017534,2]
[337814860,1726129857692,-696.65,0.00017534,2]
[337814861,1726129857701,-500.0,0.00017534,2]
[337814862,1726129857712,-533.89,0.00017534,2]
[337814863,1726129857722,-8326.4,0.00017534,2]
[337814864,1726129857731,-500.0,0.00017534,2]
[337814865,1726129857742,-500.0,0.00017534,2]
[337814866,1726129857752,-594.3,0.00017534,2]
[337814867,1726129857762,-500.0,0.00017534,2]
[337814868,1726129857772,-638.26,0.00017534,2]
[337814869,1726129857781,-1592.26,0.00017534,2]
[337814870,1726129857791,-771.86,0.00017534,2]
[337814871,1726129857801,-500.0,0.00017534,2]
[337814872,1726129857810,-500.0,0.00017534,2]
[337814873,1726129857820,-765.94,0.00017534,2]
[337814874,1726129857829,-789.07,0.00017534,2]
[337814875,1726129857839,-614.63,0.00017534,2]
[337814876,1726129857848,-819.89,0.00017534,2]
[337814877,1726129857859,-749.38,0.00017534,2]
[337814878,1726129857868,-500.0,0.00017534,2]
[337814879,1726129857877,-181.15,0.00017534,2]
[337814880,1726129857887,-801.27,0.00017534,2]
[337814881,1726129857898,-500.0,0.00017534,2]
[337814882,1726129857909,-785.06,0.00017534,2]
[337814883,1726129857919,-500.0,0.00017534,2]
[337814884,1726129857928,-1535.88,0.00017534,2]
[337814885,1726129857937,-500.0,0.00017534,2]
[337814886,1726129857947,-645.24,0.00017534,2]
[337814887,1726129857957,-553.59,0.00017534,2]
[337814888,1726129857967,-1020.67,0.00017534,2]
[337814889,1726129857976,-785.57,0.00017534,2]
[337814890,1726129857986,-5335.8,0.00017534,2]
[337814891,1726129857995,-9814.29,0.00017534,2]
[337814892,1726129858005,-643.99,0.00017534,2]
[337814893,1726129858014,-601.27,0.00017534,2]
[337814894,1726129858024,-728.16,0.00017534,2]
[337814895,1726129858035,-1101.59,0.00017534,2]
[337814896,1726129858047,-500.0,0.00017534,2]
[337814897,1726129858056,-849.41,0.00017534,2]
[337814898,1726129858066,-4352.8,0.00017534,2]
[337814899,1726129858076,-1672.11,0.00017534,2]
[337814900,1726129858085,-500.0,0.00017534,2]
[337814901,1726129858095,-873.42,0.00017534,2]
[337814902,1726129858105,-665.65,0.00017534,2]
[337814903,1726129858114,-500.0,0.00017534,2]
[337814904,1726129858124,-369.4811855,0.00017534,2]
[337814905,1726129858133,-500.0,0.00017534,2]
[337814906,1726129858143,-500.0,0.00017534,2]
[337814907,1726129858153,-500.0,0.00017534,2]
[337814908,1726129858162,-350.78,0.00017534,2]
[337814909,1726129858172,-500.0,0.00017534,2]
[337814910,1726129858182,-500.0,0.00017573,2]
[337814911,1726129858192,-500.0,0.00017573,2]
[337814912,1726129858202,-500.0,0.00017573,2]
[337814913,1726129858211,-203.52858684,0.00017573,2]
[337814914,1726129858221,-150.112234,0.000178,2]
[337814915,1726129858231,-151.0,0.00017808,2]
[337814916,1726129858241,-197.913118,0.00017808,2]
[337814917,1726129858251,-197.913118,0.00017808,2]
[337814918,1726129858260,-500.0,0.00017808,2]
[337814919,1726129858270,-500.0,0.00017808,2]
[337814920,1726129858280,-470.00633216,0.00017808,2]
[337814921,1726129858291,-500.0,0.00017808,2]
[337814922,1726129858303,-500.0,0.00017808,2]
[337814923,1726129858313,-500.0,0.00017808,2]
[337814924,1726129858323,-500.0,0.00017808,2]
[337814925,1726129858334,-500.0,0.00017808,2]
[337814926,1726129858344,-500.0,0.00017808,2]
[337814927,1726129858353,-500.0,0.00017808,2]
[337814928,1726129858364,-500.0,0.00017808,2]
[337814929,1726129858373,-500.0,0.00017808,2]
[337814930,1726129858383,-500.0,0.00017808,2]
[337814931,1726129858392,-500.0,0.00017808,2]
[337814932,1726129858402,-604.9,0.00017808,2]
[337814933,1726129858414,-500.0,0.00017808,2]
[337814934,1726129858425,-558.83280134,0.00017808,2]
[337814935,1726129858435,-500.0,0.00017808,2]
[337814936,1726129858444,-500.0,0.00017808,2]
[337814937,1726129858454,-500.0,0.00017808,2]
[337814938,1726129858463,-500.0,0.00017808,2]
[337814939,1726129858473,-500.0,0.00017808,2]
[337814940,1726129858482,-500.0,0.00017808,2]
[337814941,1726129858493,-462.5332591,0.00017808,2]
[337814942,1726129858503,-500.0,0.00017808,2]
[337814943,1726129858514,-500.0,0.00017808,2]
[337814944,1726129858526,-500.0,0.00017808,2]
[337814945,1726129858537,-500.0,0.00017808,2]
[337814946,1726129858547,-500.0,0.00017808,2]
[337814947,1726129858558,-516.13,0.00017808,2]
[337814948,1726129858567,-500.0,0.00017808,2]
[337814949,1726129858578,-500.0,0.00017808,2]
[337814950,1726129858588,-500.0,0.00017808,2]
[337814951,1726129858599,-632.03,0.00017808,2]
[337814952,1726129858608,-500.0,0.00017808,2]
[337814953,1726129858617,-621.75,0.00017808,2]
[337814954,1726129858627,-500.0,0.00017808,2]
[337814955,1726129858637,-634.58871851,0.00017808,2]
[337814956,1726129858647,-500.0,0.00017808,2]
[337814957,1726129858656,-500.0,0.00017808,2]
[337814958,1726129858669,-526.44,0.00017808,2]
[337814959,1726129858678,-500.0,0.00017808,2]
[337814960,1726129858687,-500.0,0.00017808,2]
[337814961,1726129858697,-500.0,0.00017808,2]
[337814962,1726129858706,-500.0,0.00017808,2]
[337814963,1726129858716,-500.0,0.00017808,2]